bitfinex-derivatives/quotes_SOLF0:USTF0_20260204
["timestamp","ask_amount","ask_price","bid_price","bid_amount"]
[1770168715324,1.47215105,99.49,99.44,3.5048367]
[1770168715510,4.71375763,99.49,99.44,3.5048367]
[1770168716121,1.47215105,99.49,99.44,3.5048367]
[1770168716716,1.41801107,99.499,99.44,3.5048367]
[1770168716920,3.24160658,99.45,99.398,3.53393162]
[1770168717416,1.39055799,99.497,99.431,3.53393162]
[1770168718213,9.0576,99.508,99.436,3.53393162]
[1770168718418,1.39055799,99.515,99.46,3.24160658]
[1770168718823,1.39055799,99.499,99.437,3.53393162]
[1770168719123,3.24160658,99.51,99.441,3.53393162]
[1770168719418,3.24160658,99.51,99.451,3.53393162]
[1770168719717,12.30000658,99.5,99.451,3.53393162]
[1770168720316,9.0584,99.5,99.451,3.53393162]
[1770168721114,1.33797531,99.509,99.451,3.53393162]
[1770168721314,1.34608219,99.507,99.44,3.24160658]
[1770168721526,1.34608219,99.479,99.42,3.53393162]
[1770168721720,1.34608219,99.468,99.402,3.53393162]
[1770168722019,140.9518,99.469,99.402,3.53393162]
[1770168722020,1.34608219,99.456,99.402,3.53393162]
[1770168722213,1.34608219,99.456,99.382,401.34]
[1770168722214,9.0616,99.464,99.411,3.53393162]
[1770168722414,140.8941,99.51,99.421,3.53393162]
[1770168722415,3.24160658,99.49,99.421,3.53393162]
[1770168722618,1.34608219,99.489,99.421,3.53393162]
[1770168723618,9.0616,99.465,99.421,3.53393162]
[1770168723921,3.24160658,99.46,99.403,3.53393162]
[1770168724124,4.6244393,99.46,99.403,3.53393162]
[1770168724320,1.38283272,99.459,99.403,3.53393162]
[1770168724923,9.0639,99.439,99.403,3.53393162]
[1770168725126,3.24160658,99.44,99.386,3.53393162]
[1770168725627,3.24160658,99.41,99.369,3.53393162]
[1770168725924,3.24160658,99.42,99.369,3.53393162]
[1770168726320,3.24160658,99.41,99.369,3.53393162]
[1770168726524,1.38882723,99.424,99.369,3.53393162]
[1770168726525,3.24160658,99.42,99.369,3.53393162]
[1770168726923,1.38882723,99.458,99.371,3.53393162]
[1770168727125,1.38882723,99.458,99.391,3.53393162]
[1770168727426,9.0625,99.454,99.393,3.53393162]
[1770168728225,1.38882723,99.458,99.393,3.53393162]
[1770168729729,9.0626,99.453,99.394,3.53393162]
[1770168730329,1.06780171,99.491,99.399,3.53393162]
[1770168730629,9.0606,99.475,99.418,3.53393162]
[1770168731324,9.0609,99.472,99.418,3.53393162]
[1770168732128,0.99197799,99.469,99.409,9.0666]
[1770168732831,0.99197799,99.456,99.394,9.0679]
[1770168733031,0.99197799,99.456,99.387,3.53393162]
[1770168733231,0.97911233,99.479,99.39,3.53393162]
[1770168733431,9.0617,99.464,99.408,3.53393162]
[1770168733626,0.97911233,99.498,99.415,3.53393162]
[1770168733832,0.97911233,99.498,99.414,141.0282]
[1770168733833,9.0578,99.506,99.442,3.53393162]
[1770168734429,0.97911233,99.506,99.442,3.53393162]
[1770168735435,0.97911233,99.506,99.445,3.53393162]
[1770168736732,0.97911233,99.506,99.446,9.0631]
[1770168738626,0.97911233,99.506,99.446,12.59703162]
[1770168739835,0.97911233,99.506,99.448,9.063]
[1770168741137,0.97911233,99.506,99.449,3.76772929]
[1770168741534,0.97911233,99.506,99.451,3.76772929]
[1770168742436,2.51612201,99.541,99.464,3.76772929]
[1770168742639,0.921015,99.542,99.464,3.76772929]
[1770168743241,0.921015,99.537,99.473,3.76772929]
[1770168743844,9.97869235,99.516,99.456,3.76772929]
[1770168744937,9.0557,99.529,99.466,3.76772929]
[1770168745132,0.92179235,99.54,99.466,3.76772929]
[1770168745937,9.0548,99.539,99.471,3.76772929]
[1770168746134,10.6836644,99.539,99.471,3.76772929]
[1770168746339,1.6288644,99.538,99.471,3.76772929]
[1770168747838,9.0557,99.53,99.471,3.76772929]
[1770168748444,1.76973934,99.526,99.471,3.76772929]
[1770168749244,9.0571,99.513,99.471,3.76772929]
[1770168749543,1.76973934,99.526,99.471,3.76772929]
[1770168750042,9.0569,99.516,99.471,3.76772929]
[1770168751546,10.82573934,99.526,99.472,3.76772929]
[1770168752151,10.91513279,99.519,99.472,3.76772929]
[1770168756346,9.0574,99.511,99.472,3.76772929]
[1770168759037,1.85853279,99.519,99.472,3.76772929]
[1770168760243,1.70241786,99.538,99.472,3.76772929]
[1770168760445,1.70241786,99.557,99.481,3.76772929]
[1770168760648,2.58849888,99.55,99.481,3.76772929]
[1770168761247,2.58849888,99.55,99.465,140.9568]
[1770168761248,2.58849888,99.56,99.493,140.9163]
[1770168761546,1.44797456,99.569,99.501,3.76772929]
[1770168761743,9.0514,99.576,99.512,9.0571]
[1770168762045,1.44797456,99.587,99.521,3.76772929]
[1770168762348,1.44797456,99.587,99.493,140.9163]
[1770168762349,9.0541,99.547,99.503,3.76772929]
[1770168762549,2.58849888,99.55,99.503,3.76772929]
[1770168762942,9.054,99.547,99.503,3.76772929]
[1770168763146,2.58849888,99.54,99.483,3.76772929]
[1770168763548,2.58849888,99.52,99.483,3.76772929]
[1770168763744,2.58849888,99.5,99.448,3.76772929]
[1770168763951,2.58849888,99.49,99.448,3.76772929]
[1770168764147,140.8895,99.513,99.422,3.76772929]
[1770168764148,10.43946822,99.486,99.422,3.76772929]
[1770168764445,1.37986822,99.485,99.422,3.76772929]
[1770168765149,1.37986822,99.504,99.422,3.76772929]
[1770168765749,10.43786822,99.504,99.439,3.76772929]
[1770168766750,1.37986822,99.504,99.439,3.76772929]
[1770168767350,1.37986822,99.504,99.442,3.76772929]
[1770168768247,10.43776822,99.504,99.447,3.76772929]
[1770168768451,1.4387533,99.523,99.447,3.76772929]
[1770168768852,1.4387533,99.523,99.463,3.76772929]
[1770168769057,164.98,99.553,99.463,3.76772929]
[1770168769058,1.4387533,99.543,99.463,3.76772929]
[1770168769350,9.0546,99.541,99.478,9.0602]
[1770168769554,9.0546,99.541,99.479,3.76772929]
[1770168769555,10.51040357,99.541,99.479,3.76772929]
[1770168769949,9.0549,99.538,99.479,3.76772929]
[1770168770754,164.92,99.562,99.455,401.12]
[1770168770755,1.4667333,99.568,99.495,3.61808647]
[1770168771151,1.4667333,99.568,99.498,9.0585]
[1770168771549,1.46612796,99.564,99.498,12.67658647]
[1770168771752,1.46612796,99.564,99.5,9.0582]
[1770168771949,1.46612796,99.564,99.501,3.61808647]
[1770168772761,1.46612796,99.564,99.502,3.61808647]
[1770168772957,1.46612796,99.587,99.504,3.61808647]
[1770168773165,1.46612796,99.587,99.508,3.61808647]
[1770168773370,1.38726565,99.586,99.508,3.61808647]
[1770168773875,1.38726565,99.584,99.509,3.61808647]
[1770168774266,1.38726565,99.613,99.531,140.863]
[1770168774568,1.38726565,99.601,99.521,3.61808647]
[1770168774773,140.7864,99.586,99.521,3.61808647]
[1770168775066,1.38726565,99.587,99.47,6.1688598]
[1770168775067,1.38726565,99.587,99.504,3.61808647]
[1770168775271,2.51367318,99.586,99.504,3.61808647]
[1770168775462,1.38726565,99.587,99.504,3.61808647]
[1770168775861,152.3500815,99.586,99.506,3.67724476]
[1770168776062,9.0505,99.586,99.506,3.67724476]
[1770168776267,2.51360315,99.585,99.506,3.67724476]
[1770168776468,2.51360315,99.584,99.506,3.67724476]
[1770168776682,1.36652625,99.565,99.488,3.67724476]
[1770168776863,1.36652625,99.559,99.488,3.67724476]
[1770168777064,9.0519,99.571,99.488,3.67724476]
[1770168777263,1.36652625,99.579,99.496,3.67724476]
[1770168777669,1.36281151,99.576,99.505,3.67724476]
[1770168779671,1.36281151,99.576,99.507,3.67724476]
[1770168780172,1.32752161,99.572,99.507,3.67724476]
[1770168780673,1.32752161,99.57,99.507,3.67724476]
[1770168780868,1.32752161,99.568,99.507,3.67724476]
[1770168781268,1.32183249,99.554,99.488,3.67724476]
[1770168781571,1.32183249,99.551,99.465,3.67724476]
[1770168781770,1.32183249,99.543,99.466,3.67724476]
[1770168782071,1.32183249,99.541,99.466,3.67724476]
[1770168782963,140.836,99.551,99.464,401.02]
[1770168782964,9.0555,99.531,99.468,3.67724476]
[1770168783768,9.34039171,99.563,99.447,140.9819]
[1770168783769,1.35292693,99.57,99.481,3.67724476]
[1770168783974,1.35292693,99.554,99.481,3.67724476]
[1770168784178,9.0541,99.546,99.481,3.67724476]
[1770168784374,1.35292693,99.544,99.481,3.67724476]
[1770168784674,2.51433988,99.543,99.481,3.67724476]
[1770168784863,1.35292693,99.544,99.481,3.67724476]
[1770168785065,9.0546,99.542,99.481,3.67724476]
[1770168785468,9.0534,99.554,99.482,9.0599]
[1770168785672,2.51425799,99.553,99.481,3.67724476]
[1770168785868,1.33387772,99.563,99.481,3.67724476]
[1770168786070,2.51404575,99.562,99.481,3.67724476]
[1770168786265,12.90072347,99.561,99.493,3.67724476]
[1770168786572,2.51404575,99.56,99.493,3.67724476]
[1770168786773,2.51404575,99.559,99.493,3.67724476]
[1770168786973,2.51404575,99.558,99.493,3.67724476]
[1770168787173,9.0519,99.571,99.514,3.67724476]
[1770168787364,1.42062373,99.598,99.517,3.67724476]
[1770168787567,2.51341254,99.597,99.525,3.67724476]
[1770168787767,2.51341254,99.596,99.525,3.67724476]
[1770168788069,9.0495,99.597,99.539,9.0547]
[1770168788571,1.42062373,99.598,99.54,3.67724476]
[1770168788777,1.42062373,99.596,99.517,3.67724476]
[1770168788979,1.42062373,99.594,99.517,3.67724476]
[1770168789484,1.39531804,99.629,99.552,3.67724476]
[1770168789672,3.90786896,99.628,99.552,3.67724476]
[1770168789976,3.90786896,99.627,99.552,3.67724476]
[1770168790274,9.0488,99.605,99.552,3.67724476]
[1770168790575,1.39531804,99.604,99.534,3.67724476]
[1770168791173,3.90843694,99.603,99.534,3.67724476]
[1770168791373,1.39531804,99.603,99.534,3.67724476]
[1770168791672,9.0494,99.598,99.535,3.67724476]
[1770168792178,9.0503,99.588,99.535,3.67724476]
[1770168792366,1.39531804,99.603,99.535,3.67724476]
[1770168793676,9.0492,99.6,99.536,9.0549]
[1770168793868,9.0492,99.6,99.537,3.67724476]
[1770168794072,1.39531804,99.603,99.537,3.67724476]
[1770168794275,1.37805201,99.598,99.537,3.67724476]
[1770168794674,140.8114,99.568,99.498,3.67724476]
[1770168794879,1.37805201,99.564,99.498,3.67724476]
[1770168795180,9.0528,99.561,99.498,3.67724476]
[1770168795582,9.0528,99.561,99.498,12.73564476]
[1770168795780,9.0528,99.561,99.499,3.67724476]
[1770168796276,9.0528,99.561,99.503,3.67724476]
[1770168796876,1.37805201,99.564,99.503,3.67724476]
[1770168796877,9.0538,99.55,99.503,3.67724476]
[1770168797372,9.0549,99.538,99.484,3.67724476]
[1770168797572,1.32763277,99.521,99.454,3.67724476]
[1770168797976,9.0578,99.506,99.454,3.67724476]
[1770168798383,9.0578,99.506,99.422,636.65253191]
[1770168798583,1.32763277,99.508,99.423,3.67724476]
[1770168798780,9.0588,99.495,99.423,3.67724476]
[1770168798982,1.32763277,99.491,99.423,3.67724476]
[1770168799478,9.0598,99.484,99.423,3.67724476]
[1770168800180,9.0608,99.473,99.423,3.67724476]
[1770168800379,1.36686193,99.489,99.423,3.67724476]
[1770168801079,9.0597,99.485,99.423,3.67724476]
[1770168802185,9.0587,99.496,99.427,3.52644921]
[1770168802485,1.35967048,99.51,99.427,3.52644921]
[1770168802877,2.51527328,99.525,99.448,3.52644921]
[1770168803075,2.51527328,99.545,99.479,3.52644921]
[1770168803283,1.21651226,99.593,99.514,3.52644921]
[1770168803476,140.7845,99.587,99.514,3.52644921]
[1770168803674,1.21651226,99.582,99.514,3.52644921]
[1770168804685,9.0519,99.571,99.514,3.52644921]
[1770168805387,9.0529,99.56,99.494,9.0588]
[1770168805688,1.18707597,99.562,99.488,3.52644921]
[1770168806777,140.8322,99.554,99.488,3.52644921]
[1770168806981,140.837,99.55,99.488,3.52644921]
[1770168807588,9.0548,99.539,99.488,3.52644921]
[1770168808286,1.17897509,99.55,99.488,3.52644921]
[1770168809279,6.1688598,99.57,99.488,3.52644921]
[1770168809280,1.0979934,99.563,99.488,3.52644921]
[1770168809485,1.0979934,99.559,99.488,3.52644921]
[1770168810687,1.0979934,99.559,99.49,3.52644921]
[1770168810884,1.0979934,99.585,99.492,3.52644921]
[1770168811089,140.7452,99.615,99.52,3.52644921]
[1770168811090,1.0979934,99.606,99.52,3.52644921]
[1770168811388,9.0498,99.594,99.52,3.52644921]
[1770168811687,166.78,99.622,99.508,140.8957]
[1770168811688,1.08675136,99.626,99.543,3.52644921]
[1770168812191,9.047,99.625,99.543,3.52644921]
[1770168813185,6.1688598,99.65,99.543,3.52644921]
[1770168813186,9.0484,99.61,99.543,3.52644921]
[1770168813392,1.09208544,99.609,99.543,3.52644921]
[1770168813992,9.0483,99.61,99.544,9.0543]
[1770168814192,9.0483,99.61,99.521,140.8772]
[1770168814193,1.09208544,99.629,99.545,3.52644921]
[1770168815698,9.0471,99.623,99.55,3.52644921]
[1770168815902,140.7577,99.606,99.55,3.52644921]
[1770168816399,140.7231,99.631,99.55,3.52644921]
[1770168816794,141.84737036,99.631,99.55,3.52644921]
[1770168816999,9.0478,99.616,99.55,3.52644921]
[1770168818299,2.51249647,99.646,99.549,140.838]
[1770168818493,140.6978,99.649,99.563,3.52644921]
[1770168818691,140.7055,99.643,99.563,3.52644921]
[1770168818893,1.12664625,99.642,99.563,3.52644921]
[1770168819192,9.0465,99.63,99.563,3.52644921]
[1770168820001,140.7383,99.62,99.563,3.52644921]
[1770168820202,1.11682782,99.619,99.563,3.52644921]
[1770168820401,140.7383,99.62,99.539,3.52644921]
[1770168820402,140.759,99.606,99.539,3.52644921]
[1770168820602,9.0496,99.596,99.539,3.52644921]
[1770168821302,9.0507,99.583,99.514,9.057]
[1770168821500,1.19038465,99.587,99.515,3.52644921]
[1770168821699,1.19038465,99.579,99.515,3.52644921]
[1770168821897,9.0515,99.575,99.515,3.52644921]
[1770168822097,1.19038465,99.579,99.515,3.52644921]
[1770168822701,1.19038465,99.577,99.515,3.52644921]
[1770168822902,144.49731717,99.539,99.44,6.15182563]
[1770168823207,140.8477,99.543,99.441,140.9903]
[1770168823208,9.0569,99.516,99.441,140.9903]
[1770168823407,9.0569,99.516,99.442,400.86]
[1770168823702,9.058,99.504,99.442,400.86]
[1770168823907,9.058,99.504,99.418,141.0227]
[1770168824207,9.058,99.504,99.423,400.86]
[1770168824404,9.0589,99.494,99.433,9.0644]
[1770168824602,140.8973,99.508,99.423,400.86]
[1770168824809,3.64451717,99.505,99.424,3.52644921]
[1770168825003,9.0588,99.494,99.424,3.52644921]
[1770168825399,3.64451717,99.505,99.429,9.0647]
[1770168825602,3.64451717,99.505,99.419,141.0222]
[1770168825603,3.64451717,99.505,99.434,3.52644921]
[1770168826402,9.0579,99.504,99.439,3.52644921]
[1770168826708,3.64451717,99.505,99.439,3.52644921]
[1770168827504,9.0569,99.516,99.441,3.52644921]
[1770168828002,9.0558,99.528,99.448,3.52644921]
[1770168828200,3.64451717,99.53,99.448,3.52644921]
[1770168828802,3.64451717,99.53,99.439,140.9928]
[1770168828803,9.0568,99.517,99.455,12.58874921]
[1770168829207,3.64451717,99.53,99.455,12.58874921]
[1770168829399,3.64451717,99.53,99.456,3.52644921]
[1770168829599,3.64451717,99.53,99.455,9.0623]
[1770168829600,12.70011717,99.53,99.458,3.52644921]
[1770168830503,12.70011717,99.53,99.463,9.0616]
[1770168830699,12.70011717,99.53,99.432,400.94]
[1770168830700,3.81603612,99.523,99.438,3.80519822]
[1770168831006,3.81603612,99.515,99.438,3.80519822]
[1770168831210,3.81603612,99.515,99.439,3.80519822]
[1770168831507,9.0574,99.51,99.439,3.80519822]
[1770168832106,3.81603612,99.507,99.442,9.0635]
[1770168833813,3.81603612,99.526,99.445,3.80519822]
[1770168834407,3.81603612,99.524,99.445,3.80519822]
[1770168834811,9.0567,99.518,99.458,9.062]
[1770168835414,9.0567,99.518,99.413,401.06]
[1770168835415,3.78713505,99.504,99.42,3.72689644]
[1770168836213,9.0592,99.491,99.434,9.0643]
[1770168836418,170.2,99.503,99.435,3.72689644]
[1770168836615,170.26,99.52,99.444,3.72689644]
[1770168836816,170.26,99.52,99.461,3.72689644]
[1770168837007,3.78713505,99.524,99.461,3.72689644]
[1770168837816,3.78713505,99.524,99.463,3.72689644]
[1770168838313,9.0564,99.521,99.463,3.72689644]
[1770168838514,3.78713505,99.524,99.463,3.72689644]
[1770168838812,3.78713505,99.524,99.442,3.72689644]
[1770168839016,9.0563,99.522,99.455,3.72689644]
[1770168839916,9.0572,99.513,99.455,3.72689644]
[1770168840414,9.0572,99.513,99.457,9.0622]
[1770168840917,9.058,99.504,99.436,3.72689644]
[1770168841714,9.058,99.504,99.444,9.0634]
[1770168842418,170.54,99.526,99.436,3.72689644]
[1770168842419,3.78713505,99.492,99.436,3.72689644]
[1770168844720,9.0592,99.491,99.436,3.72689644]
[1770168844920,3.78713505,99.492,99.436,3.72689644]
[1770168845318,9.0591,99.491,99.437,9.064]
[1770168846321,9.0591,99.491,99.437,12.79089644]
[1770168846522,3.78713505,99.492,99.44,3.72689644]
[1770168847822,3.78713505,99.527,99.443,3.72689644]
[1770168848410,3.78713505,99.526,99.443,3.72689644]
[1770168848719,9.0568,99.517,99.455,9.0624]
[1770168848920,3.78713505,99.526,99.456,3.72689644]
[1770168849313,3.78713505,99.526,99.473,9.0607]
[1770168849512,3.78713505,99.526,99.473,12.78759644]
[1770168849924,12.84303505,99.526,99.473,3.72689644]
[1770168850622,3.78713505,99.507,99.45,3.72689644]
[1770168851922,3.78713505,99.503,99.419,3.72689644]
[1770168852425,3.78713505,99.503,99.41,407.31182563]
[1770168852426,9.0592,99.491,99.43,9.0646]
[1770168852628,3.78713505,99.49,99.43,9.0646]
[1770168853719,9.0595,99.487,99.43,9.0646]
[1770168854722,3.78713505,99.476,99.403,3.72689644]
[1770168855522,3.78713505,99.494,99.417,3.72689644]
[1770168855822,3.78713505,99.492,99.417,3.72689644]
[1770168856023,140.9183,99.493,99.417,3.72689644]
[1770168856024,3.78713505,99.478,99.417,3.72689644]
[1770168857723,9.0612,99.469,99.417,3.72689644]
[1770168858324,9.0603,99.479,99.42,3.72689644]
[1770168858527,140.9102,99.499,99.42,3.72689644]
[1770168858528,3.74960061,99.49,99.42,3.72689644]
[1770168858825,12.81060061,99.471,99.405,3.72689644]
[1770168859926,12.81060061,99.471,99.409,3.72689644]
[1770168860826,12.81060061,99.471,99.411,9.0664]
[1770168861426,9.0618,99.462,99.409,3.72689644]
[1770168862927,9.0618,99.462,99.411,9.0664]
[1770168864427,12.81060061,99.471,99.411,12.76897853]
[1770168865021,9.0602,99.48,99.424,3.70257853]
[1770168865222,3.63370954,99.49,99.424,3.70257853]
[1770168865425,3.37115323,99.507,99.424,3.70257853]
[1770168865728,3.37115323,99.505,99.424,3.70257853]
[1770168865927,3.37115323,99.503,99.424,3.70257853]
[1770168866130,9.0591,99.491,99.435,9.0642]
[1770168866435,2.51560028,99.49,99.424,3.70257853]
[1770168866628,3.37115323,99.488,99.424,3.70257853]
[1770168866828,140.9154,99.495,99.416,9.0659]
[1770168866829,3.37115323,99.478,99.416,9.0659]
[1770168867028,3.37115323,99.478,99.407,3.70257853]
[1770168867230,9.0611,99.469,99.412,3.70257853]
[1770168868730,170.8,99.493,99.412,3.70257853]
[1770168868930,170.8,99.493,99.403,141.0448]
[1770168868931,2.51590336,99.492,99.418,3.70257853]
[1770168869130,2.51590336,99.491,99.418,3.70257853]
[1770168869336,2.51590336,99.49,99.418,3.70257853]
[1770168869638,9.0596,99.486,99.434,9.0643]
[1770168870235,9.0596,99.486,99.438,3.70257853]
[1770168870439,9.0588,99.495,99.438,3.70257853]
[1770168871839,9.0597,99.485,99.438,3.70257853]
[1770168872230,3.41803421,99.484,99.42,3.70257853]
[1770168872436,3.41803421,99.484,99.424,9.0652]
[1770168872736,140.8985,99.507,99.42,3.70257853]
[1770168872737,3.41803421,99.48,99.42,3.70257853]
[1770168872937,3.41803421,99.518,99.432,3.70257853]
[1770168873137,3.41803421,99.516,99.432,3.70257853]
[1770168873330,9.0588,99.495,99.438,9.0639]
[1770168874934,9.0598,99.485,99.432,3.70257853]
[1770168875640,9.0587,99.496,99.44,3.70257853]
[1770168876734,9.0587,99.496,99.443,9.0634]
[1770168878539,9.0578,99.506,99.452,9.0626]
[1770168878744,3.41922022,99.516,99.453,3.70257853]
[1770168879944,12.47612022,99.516,99.464,9.0615]
[1770168880342,3.41922022,99.516,99.464,12.76407853]
[1770168883845,3.41922022,99.516,99.465,3.70257853]
[1770168884146,3.41922022,99.516,99.467,9.0613]
[1770168886349,140.8408,99.548,99.449,3.70257853]
[1770168886350,3.44230294,99.514,99.449,3.70257853]
[1770168886950,3.44230294,99.503,99.433,3.70257853]
[1770168888644,5.93447255,99.502,99.433,3.70257853]
[1770168888846,9.0592,99.49,99.439,3.70257853]
[1770168890050,3.41899021,99.502,99.443,3.70257853]
[1770168890448,3.45241377,99.525,99.443,3.70257853]
[1770168890652,3.45570395,99.523,99.454,3.52057031]
[1770168890846,3.45570395,99.553,99.476,3.52057031]
[1770168891049,3.45570395,99.553,99.481,3.52057031]
[1770168891253,3.45570395,99.553,99.474,401.2]
[1770168891254,9.0527,99.562,99.499,3.52057031]
[1770168892550,12.52377085,99.562,99.499,3.52057031]
[1770168892752,3.47107085,99.558,99.499,3.52057031]
[1770168893856,3.46453526,99.545,99.48,3.52057031]
[1770168894354,9.0559,99.527,99.48,3.52057031]
[1770168894850,9.0549,99.538,99.48,3.52057031]
[1770168895253,3.46453526,99.545,99.48,3.52057031]
[1770168895758,3.46453526,99.545,99.484,3.71223766]
[1770168897653,3.46453526,99.545,99.491,3.71223766]
[1770168898658,3.46453526,99.545,99.496,9.0586]
[1770168899759,9.0536,99.552,99.497,3.71223766]
[1770168900157,9.0525,99.565,99.504,3.71223766]
[1770168900648,3.47861481,99.564,99.504,3.71223766]
[1770168901661,3.45944422,99.559,99.504,3.71223766]
[1770168901859,3.45944422,99.559,99.47,6.16599377]
[1770168901860,3.45944422,99.546,99.477,3.71223766]
[1770168902059,3.45944422,99.543,99.477,3.71223766]
[1770168902261,9.0555,99.531,99.477,3.71223766]
[1770168902453,3.45944422,99.543,99.477,3.71223766]
[1770168902661,9.0584,99.499,99.454,3.71223766]
[1770168902858,9.0584,99.499,99.41,147.20029377]
[1770168902859,9.35220279,99.571,99.48,2.89129859]
[1770168903054,25.06499709,99.665,99.48,2.89129859]
[1770168903055,3.52653787,99.569,99.486,2.89129859]
[1770168903254,140.8086,99.57,99.449,2.87904417]
[1770168903255,140.8632,99.532,99.449,2.87904417]
[1770168903459,3.52653787,99.517,99.449,2.87904417]
[1770168903967,310.2077,99.571,99.466,2.87904417]
[1770168903968,3.52653787,99.535,99.466,2.87904417]
[1770168904164,3.52653787,99.535,99.471,2.87904417]
[1770168904559,140.8403,99.548,99.453,2.87904417]
[1770168904560,3.52653787,99.532,99.453,2.87904417]
[1770168904764,3.52653787,99.53,99.453,2.87904417]
[1770168904965,3.52653787,99.524,99.453,2.87904417]
[1770168906270,3.52653787,99.524,99.456,2.97571802]
[1770168906662,3.52653787,99.521,99.432,2.97571802]
[1770168906864,3.52653787,99.518,99.432,2.97571802]
[1770168907167,9.0572,99.512,99.448,2.98261283]
[1770168907371,9.0572,99.512,99.431,294.76]
[1770168907372,3.52653787,99.516,99.455,2.98261283]
[1770168907880,3.52653787,99.516,99.46,9.0619]
[1770168908069,3.52653787,99.516,99.455,2.98261283]
[1770168908267,3.52653787,99.516,99.456,12.04491283]
[1770168908472,3.52653787,99.516,99.457,2.98261283]
[1770168909681,3.52653787,99.516,99.459,9.062]
[1770168911081,3.52653787,99.516,99.462,2.96521037]
[1770168913776,3.52653787,99.516,99.463,9.0617]
[1770168913977,3.52653787,99.535,99.464,2.92342183]
[1770168914782,3.52653787,99.535,99.468,2.92342183]
[1770168915184,3.52653787,99.531,99.45,2.92342183]
[1770168915477,3.52653787,99.529,99.452,3.02511818]
[1770168915683,3.52653787,99.527,99.452,3.02511818]
[1770168915883,9.0568,99.516,99.454,3.02511818]
[1770168917683,3.52653787,99.515,99.454,3.02511818]
[1770168917978,3.52653787,99.515,99.459,9.062]
[1770168918483,3.52653787,99.51,99.454,3.02511818]
[1770168919078,3.52653787,99.51,99.46,9.0619]
[1770168919284,3.52653787,99.51,99.432,141.0035]
[1770168919285,9.0566,99.52,99.461,2.98375753]
[1770168919485,2.5150936,99.519,99.461,2.98375753]
[1770168919686,2.5150936,99.518,99.461,2.98375753]
[1770168919881,2.5150936,99.517,99.461,2.98375753]
[1770168920082,2.5150936,99.516,99.461,2.98375753]
[1770168920282,9.0566,99.52,99.461,2.98375753]
[1770168920687,9.0566,99.52,99.466,9.0614]
[1770168920885,9.0566,99.52,99.442,140.9897]
[1770168920886,3.52653787,99.528,99.467,2.96322489]
[1770168921290,3.52653787,99.528,99.481,9.06]
[1770168921585,3.52653787,99.528,99.482,2.84455865]
[1770168922187,12.45128913,99.586,99.462,140.9608]
[1770168922188,3.69875105,99.546,99.494,2.84455865]
[1770168922485,3.69875105,99.577,99.494,2.84455865]
[1770168922679,6.16599377,99.59,99.494,2.84455865]
[1770168922680,3.69875105,99.575,99.494,2.84455865]
[1770168922883,3.69875105,99.573,99.494,2.84455865]
[1770168923082,3.69875105,99.571,99.494,2.84455865]
[1770168923278,3.69875105,99.569,99.494,2.84455865]
[1770168923478,3.69875105,99.561,99.494,2.84455865]
[1770168923684,3.69875105,99.559,99.494,2.84455865]
[1770168923887,3.69875105,99.557,99.494,2.84455865]
[1770168924081,3.69875105,99.555,99.494,2.84455865]
[1770168924681,3.69875105,99.555,99.496,2.82284116]
[1770168925690,3.69875105,99.555,99.499,9.0583]
[1770168927684,3.69875105,99.555,99.505,9.0578]
[1770168927884,3.69875105,99.571,99.507,2.74341857]
[1770168928085,6.2123741,99.57,99.507,2.74341857]
[1770168928285,3.69875105,99.57,99.524,9.0561]
[1770168929486,3.69875105,99.57,99.507,2.74341857]
[1770168929487,3.69875105,99.57,99.51,9.0573]
[1770168929887,3.69875105,99.568,99.51,9.0573]
[1770168930889,3.69875105,99.567,99.51,9.0573]
[1770168931993,3.69875105,99.565,99.499,9.0583]
[1770168932196,3.69875105,99.565,99.5,2.71325588]
[1770168933192,3.69875105,99.554,99.5,2.71325588]
[1770168934792,3.69875105,99.545,99.464,2.70104792]
[1770168934996,3.69875105,99.543,99.464,2.70104792]
[1770168935196,3.69875105,99.541,99.464,2.70104792]
[1770168935394,3.69875105,99.539,99.464,2.70104792]
[1770168935796,12.75455105,99.528,99.468,11.75062042]
[1770168936093,12.75455105,99.528,99.469,2.68942042]
[1770168936698,9.0565,99.52,99.469,2.68942042]
[1770168938395,9.0565,99.52,99.432,9.16691382]
[1770168938396,2.58899572,99.51,99.45,2.68265203]
[1770168938601,3.69875105,99.509,99.451,2.68265203]
[1770168939794,3.69875105,99.509,99.453,2.65260508]
[1770168940901,3.69875105,99.519,99.46,2.65260508]
[1770168942295,3.69875105,99.519,99.47,2.64696295]
[1770168943702,3.69875105,99.509,99.452,401.06]
[1770168943904,2.58899572,99.5,99.452,401.06]
[1770168944299,2.58899572,99.5,99.41,141.0344]
[1770168944300,6.28774677,99.49,99.434,2.41589494]
[1770168944997,3.69875105,99.489,99.422,2.41589494]